[Event "*** Titled Tuesday Blitz"]
[Site "Chess.com"]
[Date "2020.11.10"]
[Round "1"]
[White "NewBornNow"]
[Black "dosto07"]
[Result "1-0"]
[WhiteElo "2641"]
[BlackElo "2323"]
[TimeControl "180+1"]
[EndTime "10:04:53 PST"]
[Termination "NewBornNow won by resignation"]

1. e4 {[%clk 0:02:59.4]} 1... e5 {[%clk 0:02:58.9]} 2. Nf3 {[%clk 0:02:57]} 2...
Nc6 {[%clk 0:02:59.2]} 3. Bc4 {[%clk 0:02:56.6]} 3... Bc5 {[%clk 0:02:58.1]} 4.
d3 {[%clk 0:02:56.2]} 4... Nf6 {[%clk 0:02:56.2]} 5. c3 {[%clk 0:02:56.5]} 5...
a6 {[%clk 0:02:53.8]} 6. Nbd2 {[%clk 0:02:56]} 6... d6 {[%clk 0:02:52.3]} 7. Bb3
{[%clk 0:02:54.4]} 7... O-O {[%clk 0:02:52.4]} 8. h3 {[%clk 0:02:53.9]} 8... Ba7
{[%clk 0:02:52]} 9. Nf1 {[%clk 0:02:53.5]} 9... Ne7 {[%clk 0:02:51.9]} 10. Ng3
{[%clk 0:02:53.2]} 10... Ng6 {[%clk 0:02:52.2]} 11. O-O {[%clk 0:02:53.5]} 11...
h6 {[%clk 0:02:49.9]} 12. d4 {[%clk 0:02:52.3]} 12... Re8 {[%clk 0:02:44.4]} 13.
Re1 {[%clk 0:02:52]} 13... Be6 {[%clk 0:02:43.4]} 14. Bc2 {[%clk 0:02:50.9]}
14... c6 {[%clk 0:02:40.5]} 15. Be3 {[%clk 0:02:50.1]} 15... Qc7 {[%clk
0:02:34.2]} 16. Qd2 {[%clk 0:02:47.8]} 16... Qe7 {[%clk 0:02:17.5]} 17. Rad1
{[%clk 0:02:42.6]} 17... b5 {[%clk 0:02:03.9]} 18. Nf5 {[%clk 0:02:41.3]} 18...
Bxf5 {[%clk 0:01:59.7]} 19. exf5 {[%clk 0:02:41]} 19... Nf8 {[%clk 0:01:54.9]}
20. dxe5 {[%clk 0:02:40.5]} 20... dxe5 {[%clk 0:01:50]} 21. Bxa7 {[%clk
0:02:32.4]} 21... Rxa7 {[%clk 0:01:40.9]} 22. Nxe5 {[%clk 0:02:30.1]} 22... Qc7
{[%clk 0:01:40.4]} 23. f4 {[%clk 0:02:26.4]} 23... Raa8 {[%clk 0:01:37.7]} 24.
Qf2 {[%clk 0:02:21.2]} 24... Rad8 {[%clk 0:01:36.4]} 25. Qc5 {[%clk 0:02:19.3]}
25... N8d7 {[%clk 0:01:25]} 26. Qxc6 {[%clk 0:02:14.8]} 26... Qa7+ {[%clk
0:01:23.5]} 27. Kh1 {[%clk 0:02:08.5]} 27... Nc5 {[%clk 0:01:16]} 28. Qf3 {[%clk
0:02:02.8]} 28... Qb6 {[%clk 0:01:09.3]} 29. b4 {[%clk 0:01:54.8]} 29... Na4
{[%clk 0:01:05]} 30. Bb3 {[%clk 0:01:54.4]} 1-0

[Event "*** Titled Tuesday Blitz"]
[Site "Chess.com"]
[Date "2020.11.10"]
[Round "1"]
[White "LimeInTheCoconut"]
[Black "Kiborg95"]
[Result "0-1"]
[WhiteElo "2390"]
[BlackElo "2744"]
[TimeControl "180+1"]
[EndTime "10:04:56 PST"]
[Termination "Kiborg95 won on time"]

1. d4 {[%clk 0:02:58]} 1... d6 {[%clk 0:02:58.1]} 2. e4 {[%clk 0:02:53.2]} 2...
Nf6 {[%clk 0:02:55.7]} 3. Nc3 {[%clk 0:02:52.4]} 3... e5 {[%clk 0:02:54.8]} 4.
dxe5 {[%clk 0:02:53]} 4... dxe5 {[%clk 0:02:55.7]} 5. Qxd8+ {[%clk 0:02:53.1]}
5... Kxd8 {[%clk 0:02:56.6]} 6. Nf3 {[%clk 0:02:38.1]} 6... Bd6 {[%clk
0:02:54.9]} 7. Bc4 {[%clk 0:02:35.4]} 7... Ke7 {[%clk 0:02:53.5]} 8. Bg5 {[%clk
0:02:30.4]} 8... c6 {[%clk 0:02:53.9]} 9. O-O-O {[%clk 0:02:20.8]} 9... Be6
{[%clk 0:02:50]} 10. Bxf6+ {[%clk 0:02:15.7]} 10... gxf6 {[%clk 0:02:45.5]} 11.
Be2 {[%clk 0:02:05.1]} 11... b5 {[%clk 0:02:42.7]} 12. Nh4 {[%clk 0:01:48.8]}
12... Bb4 {[%clk 0:02:39.7]} 13. Rd3 {[%clk 0:01:33.2]} 13... Na6 {[%clk
0:02:38.8]} 14. a3 {[%clk 0:01:20.8]} 14... Bc5 {[%clk 0:02:38.6]} 15. Rf3
{[%clk 0:01:14]} 15... Bd4 {[%clk 0:02:35.6]} 16. Nd1 {[%clk 0:00:53.6]} 16...
Rhg8 {[%clk 0:02:31.9]} 17. Ne3 {[%clk 0:00:42.4]} 17... Bxe3+ {[%clk
0:02:29.7]} 18. Rxe3 {[%clk 0:00:43.3]} 18... Nc5 {[%clk 0:02:30.2]} 19. Rd1
{[%clk 0:00:35.4]} 19... Rad8 {[%clk 0:02:26.4]} 20. Rxd8 {[%clk 0:00:33.5]}
20... Rxd8 {[%clk 0:02:27.3]} 21. f3 {[%clk 0:00:21]} 21... a5 {[%clk
0:02:27.3]} 22. Rc3 {[%clk 0:00:15.8]} 22... Kd6 {[%clk 0:02:27.7]} 23. b4
{[%clk 0:00:14.3]} 23... axb4 {[%clk 0:02:28]} 24. axb4 {[%clk 0:00:14.9]} 24...
Nd7 {[%clk 0:02:28.7]} 25. Rd3+ {[%clk 0:00:14.6]} 25... Kc7 {[%clk 0:02:27.6]}
26. Kb2 {[%clk 0:00:13]} 26... Rg8 {[%clk 0:02:24.6]} 27. Rd2 {[%clk 0:00:09.2]}
27... Nb6 {[%clk 0:02:23.2]} 28. g3 {[%clk 0:00:08.4]} 28... Ra8 {[%clk
0:02:23.2]} 29. Bd3 {[%clk 0:00:02.4]} 29... Ra2+ {[%clk 0:02:22.2]} 30. Kb1
{[%clk 0:00:02.1]} 30... Na4 {[%clk 0:02:20.6]} 0-1

[Event "*** Titled Tuesday Blitz"]
[Site "Chess.com"]
[Date "2020.11.10"]
[Round "1"]
[White "elamier"]
[Black "Vuk2000"]
[Result "1-0"]
[WhiteElo "2358"]
[BlackElo "2655"]
[TimeControl "180+1"]
[EndTime "10:04:59 PST"]
[Termination "elamier won by resignation"]

1. d4 {[%clk 0:02:56.8]} 1... e6 {[%clk 0:02:59.9]} 2. Nf3 {[%clk 0:02:56.2]}
2... Nf6 {[%clk 0:02:59.8]} 3. Nbd2 {[%clk 0:02:54.8]} 3... d5 {[%clk
0:02:59.5]} 4. e3 {[%clk 0:02:54.9]} 4... c5 {[%clk 0:02:58.4]} 5. c3 {[%clk
0:02:55.4]} 5... Bd6 {[%clk 0:02:49.7]} 6. Bd3 {[%clk 0:02:55.7]} 6... O-O
{[%clk 0:02:49.3]} 7. O-O {[%clk 0:02:55.8]} 7... Nc6 {[%clk 0:02:46.1]} 8. dxc5
{[%clk 0:02:55.8]} 8... Bxc5 {[%clk 0:02:46]} 9. e4 {[%clk 0:02:55]} 9... b6
{[%clk 0:02:43.6]} 10. Qe2 {[%clk 0:02:54.4]} 10... Bb7 {[%clk 0:02:41.2]} 11.
e5 {[%clk 0:02:51.8]} 11... Nd7 {[%clk 0:02:40]} 12. Nb3 {[%clk 0:02:51.8]}
12... Be7 {[%clk 0:02:27.3]} 13. Bf4 {[%clk 0:02:50.8]} 13... Nc5 {[%clk
0:02:26.3]} 14. Nxc5 {[%clk 0:02:49.6]} 14... bxc5 {[%clk 0:02:19.1]} 15. Rad1
{[%clk 0:02:48.7]} 15... h6 {[%clk 0:02:04.3]} 16. c4 {[%clk 0:02:48]} 16... Nb4
{[%clk 0:01:56.9]} 17. Bb1 {[%clk 0:02:47.2]} 17... d4 {[%clk 0:01:17.5]} 18. a3
{[%clk 0:02:44.8]} 18... Nc6 {[%clk 0:00:59.2]} 19. Qe4 {[%clk 0:02:38.2]} 19...
f5 {[%clk 0:00:59.4]} 20. exf6 {[%clk 0:02:37.6]} 20... Rxf6 {[%clk 0:00:59.8]}
21. Qh7+ {[%clk 0:02:35.4]} 21... Kf7 {[%clk 0:00:44]} 22. Be5 {[%clk
0:02:35.1]} 22... Bd6 {[%clk 0:00:32.1]} 23. Bxf6 {[%clk 0:02:32.7]} 23... Qxf6
{[%clk 0:00:33]} 24. Rfe1 {[%clk 0:02:27.9]} 24... Ne7 {[%clk 0:00:30.4]} 25.
Be4 {[%clk 0:02:26.3]} 25... Bxe4 {[%clk 0:00:28.3]} 26. Qxe4 {[%clk 0:02:25.5]}
26... Rb8 {[%clk 0:00:26.7]} 27. b4 {[%clk 0:02:25]} 27... cxb4 {[%clk
0:00:26.5]} 28. axb4 {[%clk 0:02:24]} 28... Bxb4 {[%clk 0:00:26]} 29. Ne5+
{[%clk 0:02:20.4]} 29... Kg8 {[%clk 0:00:23.3]} 30. Nd7 {[%clk 0:02:20.2]} 1-0

[Event "*** Titled Tuesday Blitz"]
[Site "Chess.com"]
[Date "2020.11.10"]
[Round "1"]
[White "Evachess2006"]
[Black "NateSolon"]
[Result "0-1"]
[WhiteElo "1630"]
[BlackElo "2475"]
[TimeControl "180+1"]
[EndTime "10:05:07 PST"]
[Termination "NateSolon won on time"]

1. e4 {[%clk 0:02:57.2]} 1... c5 {[%clk 0:02:59.9]} 2. c3 {[%clk 0:02:37.7]}
2... Nf6 {[%clk 0:02:59]} 3. e5 {[%clk 0:02:17.3]} 3... Nd5 {[%clk 0:02:57.1]}
4. d4 {[%clk 0:02:18.2]} 4... cxd4 {[%clk 0:02:55.6]} 5. Nf3 {[%clk 0:02:14.1]}
5... Nc6 {[%clk 0:02:53.5]} 6. cxd4 {[%clk 0:01:54.2]} 6... d6 {[%clk
0:02:51.9]} 7. exd6 {[%clk 0:01:50.1]} 7... e6 {[%clk 0:02:46.7]} 8. Be2 {[%clk
0:01:36.7]} 8... Bxd6 {[%clk 0:02:46.3]} 9. O-O {[%clk 0:01:26.8]} 9... O-O
{[%clk 0:02:45.6]} 10. Nc3 {[%clk 0:01:20]} 10... Nxc3 {[%clk 0:02:44.6]} 11.
bxc3 {[%clk 0:01:20.9]} 11... b6 {[%clk 0:02:44.9]} 12. Qc2 {[%clk 0:01:19.5]}
12... h6 {[%clk 0:02:39.3]} 13. Bb2 {[%clk 0:00:56.8]} 13... Bb7 {[%clk
0:02:39.2]} 14. Rac1 {[%clk 0:00:43.7]} 14... Rc8 {[%clk 0:02:38.5]} 15. c4
{[%clk 0:00:37.2]} 15... Qc7 {[%clk 0:02:20]} 16. Rfd1 {[%clk 0:00:18.7]} 16...
Bf4 {[%clk 0:02:04.6]} 17. Rb1 {[%clk 0:00:16.3]} 17... Na5 {[%clk 0:02:00.3]}
18. Bc1 {[%clk 0:00:11.4]} 18... Bxf3 {[%clk 0:01:50.3]} 19. Bxf3 {[%clk
0:00:05]} 19... Bxh2+ {[%clk 0:01:49.3]} 20. Kf1 {[%clk 0:00:02.2]} 20... Nxc4
{[%clk 0:01:43.5]} 0-1

[Event "*** Titled Tuesday Blitz"]
[Site "Chess.com"]
[Date "2020.11.10"]
[Round "1"]
[White "GOGIEFF"]
[Black "Chessalary"]
[Result "1-0"]
[WhiteElo "2886"]
[BlackElo "2445"]
[TimeControl "180+1"]
[EndTime "10:05:08 PST"]
[Termination "GOGIEFF won by resignation"]

1. d4 {[%clk 0:03:00.1]} 1... d5 {[%clk 0:02:58.9]} 2. c4 {[%clk 0:03:00.1]}
2... e6 {[%clk 0:02:59.2]} 3. Nc3 {[%clk 0:02:59.7]} 3... c6 {[%clk 0:02:59.4]}
4. e4 {[%clk 0:02:59]} 4... dxe4 {[%clk 0:02:59.5]} 5. Nxe4 {[%clk 0:02:59.9]}
5... Bb4+ {[%clk 0:02:59.9]} 6. Nc3 {[%clk 0:03:00]} 6... c5 {[%clk 0:02:59.2]}
7. a3 {[%clk 0:02:59]} 7... Bxc3+ {[%clk 0:02:58.4]} 8. bxc3 {[%clk 0:02:58.6]}
8... Nf6 {[%clk 0:02:57.4]} 9. Nf3 {[%clk 0:02:58.6]} 9... O-O {[%clk 0:02:57]}
10. Bd3 {[%clk 0:02:56.5]} 10... Nc6 {[%clk 0:02:49.5]} 11. O-O {[%clk
0:02:53.8]} 11... h6 {[%clk 0:02:46]} 12. Be3 {[%clk 0:02:46.8]} 12... cxd4
{[%clk 0:02:43.3]} 13. cxd4 {[%clk 0:02:46.5]} 13... Qc7 {[%clk 0:02:43.2]} 14.
Rc1 {[%clk 0:02:36.7]} 14... Rd8 {[%clk 0:02:39.6]} 15. Bb1 {[%clk 0:02:34.6]}
15... e5 {[%clk 0:02:19.8]} 16. d5 {[%clk 0:02:32.1]} 16... e4 {[%clk
0:02:19.9]} 17. Nd2 {[%clk 0:02:19.1]} 17... Bg4 {[%clk 0:02:19.7]} 18. Qc2
{[%clk 0:02:13.8]} 18... Be2 {[%clk 0:01:20.5]} 19. Nxe4 {[%clk 0:02:09.1]}
19... Ng4 {[%clk 0:01:13.5]} 20. d6 {[%clk 0:01:55.4]} 20... Rxd6 {[%clk
0:01:12.2]} 21. Qxe2 {[%clk 0:01:48.2]} 21... Rg6 {[%clk 0:00:58.2]} 22. Ng3
{[%clk 0:01:46.1]} 22... Nxe3 {[%clk 0:00:54.1]} 23. fxe3 {[%clk 0:01:46.1]}
23... Re6 {[%clk 0:00:52.6]} 24. Be4 {[%clk 0:01:45]} 24... Rae8 {[%clk
0:00:44.4]} 25. Bd5 {[%clk 0:01:45.2]} 25... R6e7 {[%clk 0:00:42.2]} 26. Nf5
{[%clk 0:01:42.3]} 26... Re5 {[%clk 0:00:38]} 27. Qg4 {[%clk 0:01:41.9]} 1-0

[Event "*** Titled Tuesday Blitz"]
[Site "Chess.com"]
[Date "2020.11.10"]
[Round "1"]
[White "MasterMK73"]
[Black "Willychess95"]
[Result "1-0"]
[WhiteElo "2252"]
[BlackElo "2550"]
[TimeControl "180+1"]
[EndTime "10:05:08 PST"]
[Termination "MasterMK73 won by resignation"]

1. e4 {[%clk 0:02:59.9]} 1... c5 {[%clk 0:02:58.9]} 2. Nf3 {[%clk 0:02:58.8]}
2... d6 {[%clk 0:02:58.4]} 3. Bb5+ {[%clk 0:02:57.4]} 3... Bd7 {[%clk
0:02:57.8]} 4. Bxd7+ {[%clk 0:02:56.4]} 4... Qxd7 {[%clk 0:02:58.7]} 5. O-O
{[%clk 0:02:55.5]} 5... Nf6 {[%clk 0:02:54.3]} 6. Qe2 {[%clk 0:02:41.3]} 6...
Nc6 {[%clk 0:02:53.5]} 7. Rd1 {[%clk 0:02:40.2]} 7... g6 {[%clk 0:02:53]} 8. c3
{[%clk 0:02:30.5]} 8... Bg7 {[%clk 0:02:49.9]} 9. d4 {[%clk 0:02:30.5]} 9...
cxd4 {[%clk 0:02:50.8]} 10. cxd4 {[%clk 0:02:29.5]} 10... d5 {[%clk 0:02:48.2]}
11. e5 {[%clk 0:02:22.9]} 11... Ne4 {[%clk 0:02:44.5]} 12. Nbd2 {[%clk
0:02:21.6]} 12... Nxd2 {[%clk 0:02:40.2]} 13. Bxd2 {[%clk 0:02:20.4]} 13... O-O
{[%clk 0:02:40.6]} 14. Bc3 {[%clk 0:02:18.9]} 14... Rac8 {[%clk 0:02:39.7]} 15.
Re1 {[%clk 0:02:09.6]} 15... Nd8 {[%clk 0:02:34.7]} 16. Bb4 {[%clk 0:02:02.6]}
16... Ne6 {[%clk 0:02:29.6]} 17. Qd2 {[%clk 0:01:58.6]} 17... Rc3 {[%clk
0:02:20.8]} 18. Bxc3 {[%clk 0:01:55.1]} 18... Rc8 {[%clk 0:02:04.8]} 19. Rac1
{[%clk 0:01:53.2]} 19... h5 {[%clk 0:01:52]} 20. Bb4 {[%clk 0:01:49.5]} 20...
Kh7 {[%clk 0:01:50.2]} 21. Rxc8 {[%clk 0:01:46.7]} 21... Qxc8 {[%clk 0:01:41.3]}
22. Bxe7 {[%clk 0:01:46.2]} 22... Bh6 {[%clk 0:01:41]} 23. Bg5 {[%clk
0:01:44.6]} 23... Bg7 {[%clk 0:01:40.4]} 24. Rc1 {[%clk 0:01:41.1]} 24... Qd7
{[%clk 0:01:39.8]} 25. Be3 {[%clk 0:01:40.2]} 25... Qa4 {[%clk 0:01:36.5]} 26.
b3 {[%clk 0:01:37.7]} 26... Qa3 {[%clk 0:01:35.5]} 27. Ng5+ {[%clk 0:01:35.3]}
27... Nxg5 {[%clk 0:01:34.7]} 28. Bxg5 {[%clk 0:01:35.1]} 28... Bf8 {[%clk
0:01:31.4]} 29. h3 {[%clk 0:01:30.2]} 29... Bb4 {[%clk 0:01:10.9]} 30. Qf4
{[%clk 0:01:27.5]} 30... Bf8 {[%clk 0:01:03.7]} 31. Qxf7+ {[%clk 0:01:23.3]}
31... Bg7 {[%clk 0:01:03.8]} 32. Rc7 {[%clk 0:01:21.5]} 1-0

[Event "*** Titled Tuesday Blitz"]
[Site "Chess.com"]
[Date "2020.11.10"]
[Round "1"]
[White "Aleksey_Sorokin"]
[Black "Flopezin"]
[Result "1-0"]
[WhiteElo "2754"]
[BlackElo "2395"]
[TimeControl "180+1"]
[EndTime "10:05:09 PST"]
[Termination "Aleksey_Sorokin won by resignation"]

1. d4 {[%clk 0:03:00.9]} 1... Nf6 {[%clk 0:02:59.5]} 2. c4 {[%clk 0:02:59.8]}
2... e6 {[%clk 0:02:59.5]} 3. Nf3 {[%clk 0:02:59.3]} 3... c5 {[%clk 0:02:58.8]}
4. d5 {[%clk 0:02:59.1]} 4... d6 {[%clk 0:02:58.7]} 5. Nc3 {[%clk 0:02:58.8]}
5... exd5 {[%clk 0:02:59.2]} 6. cxd5 {[%clk 0:02:59.7]} 6... g6 {[%clk
0:02:59.5]} 7. Bf4 {[%clk 0:02:59.7]} 7... a6 {[%clk 0:02:54.3]} 8. a4 {[%clk
0:02:56.6]} 8... Bg7 {[%clk 0:02:52.7]} 9. h3 {[%clk 0:02:56.8]} 9... O-O {[%clk
0:02:51.5]} 10. e3 {[%clk 0:02:57]} 10... Qe7 {[%clk 0:02:50.8]} 11. Be2 {[%clk
0:02:53.5]} 11... Nbd7 {[%clk 0:02:22.8]} 12. O-O {[%clk 0:02:52.5]} 12... Ne8
{[%clk 0:02:23.3]} 13. Nd2 {[%clk 0:02:49.1]} 13... Nc7 {[%clk 0:02:18.2]} 14.
Nc4 {[%clk 0:02:44.5]} 14... Ne5 {[%clk 0:02:17.6]} 15. Nb6 {[%clk 0:02:39.2]}
15... Rb8 {[%clk 0:02:14.4]} 16. Bg3 {[%clk 0:02:37.3]} 16... Nd7 {[%clk
0:02:02.1]} 17. Qb3 {[%clk 0:02:36.6]} 17... Be5 {[%clk 0:01:47.3]} 18. Bxe5
{[%clk 0:02:26.9]} 18... Nxe5 {[%clk 0:01:46.3]} 19. a5 {[%clk 0:02:13.5]} 19...
Bd7 {[%clk 0:01:37.8]} 20. Rae1 {[%clk 0:02:06.8]} 20... f5 {[%clk 0:01:36.7]}
21. f4 {[%clk 0:02:02.8]} 21... Nf7 {[%clk 0:01:36.6]} 22. e4 {[%clk 0:01:58.8]}
22... fxe4 {[%clk 0:01:29.4]} 23. Nxe4 {[%clk 0:01:58.8]} 23... Bf5 {[%clk
0:01:27.3]} 24. Ng3 {[%clk 0:01:46.4]} 24... Rbe8 {[%clk 0:01:05.8]} 25. Nxf5
{[%clk 0:01:41.3]} 25... gxf5 {[%clk 0:01:06.1]} 26. Qg3+ {[%clk 0:01:33.6]}
26... Kh8 {[%clk 0:01:05.4]} 27. Qc3+ {[%clk 0:01:33.3]} 27... Kg8 {[%clk
0:01:01.3]} 28. Bh5 {[%clk 0:01:26.8]} 28... Qh4 {[%clk 0:00:56.9]} 29. Nd7
{[%clk 0:01:24]} 29... Qxh5 {[%clk 0:00:46.9]} 30. Nf6+ {[%clk 0:01:22.8]} 1-0

[Event "*** Titled Tuesday Blitz"]
[Site "Chess.com"]
[Date "2020.11.10"]
[Round "1"]
[White "BAS8892"]
[Black "serhanberat_ozdemir"]
[Result "1-0"]
[WhiteElo "2721"]
[BlackElo "2374"]
[TimeControl "180+1"]
[EndTime "10:05:10 PST"]
[Termination "BAS8892 won by resignation"]

1. d4 {[%clk 0:03:00.9]} 1... Nf6 {[%clk 0:02:58.7]} 2. c4 {[%clk 0:03:00.9]}
2... g6 {[%clk 0:02:56.6]} 3. Nc3 {[%clk 0:03:00.3]} 3... Bg7 {[%clk 0:02:56.9]}
4. e4 {[%clk 0:02:59.5]} 4... d6 {[%clk 0:02:56.6]} 5. f4 {[%clk 0:02:59.4]}
5... O-O {[%clk 0:02:56.6]} 6. Nf3 {[%clk 0:02:58.4]} 6... c5 {[%clk 0:02:56.6]}
7. dxc5 {[%clk 0:02:57.7]} 7... dxc5 {[%clk 0:02:56]} 8. Bd3 {[%clk 0:02:56.8]}
8... Bg4 {[%clk 0:02:48.9]} 9. e5 {[%clk 0:02:55.5]} 9... Nfd7 {[%clk
0:02:40.3]} 10. Be4 {[%clk 0:02:54.2]} 10... Nc6 {[%clk 0:02:31]} 11. Be3 {[%clk
0:02:53.8]} 11... Rc8 {[%clk 0:02:00.9]} 12. h3 {[%clk 0:02:50.4]} 12... Bxf3
{[%clk 0:01:59.9]} 13. Bxf3 {[%clk 0:02:50.4]} 13... e6 {[%clk 0:01:31.8]} 14.
O-O {[%clk 0:02:44.9]} 14... g5 {[%clk 0:01:24.9]} 15. fxg5 {[%clk 0:02:41.9]}
15... Ndxe5 {[%clk 0:01:21.9]} 16. Qe2 {[%clk 0:02:34.1]} 16... Nd4 {[%clk
0:01:19.9]} 17. Bxd4 {[%clk 0:02:31.8]} 17... cxd4 {[%clk 0:01:20.8]} 18. Ne4
{[%clk 0:02:30]} 18... d3 {[%clk 0:01:07.7]} 19. Qf2 {[%clk 0:02:23]} 19... Qd4
{[%clk 0:00:20.3]} 20. Qxd4 {[%clk 0:02:14.5]} 20... Nxf3+ {[%clk 0:00:19.8]}
21. Rxf3 {[%clk 0:02:13.5]} 21... Bxd4+ {[%clk 0:00:20.7]} 22. Kf1 {[%clk
0:02:13.6]} 22... Rxc4 {[%clk 0:00:20.2]} 23. Rxd3 {[%clk 0:02:10.9]} 23... Bxb2
{[%clk 0:00:18.9]} 24. Re1 {[%clk 0:02:10.6]} 24... Rc7 {[%clk 0:00:09.3]} 25.
Red1 {[%clk 0:02:05.7]} 25... Rfc8 {[%clk 0:00:08.8]} 26. Ke2 {[%clk 0:02:05.1]}
26... Kg7 {[%clk 0:00:08.9]} 27. Kf3 {[%clk 0:02:05.1]} 27... Rc3 {[%clk
0:00:08.9]} 28. Nxc3 {[%clk 0:02:03.8]} 28... Bxc3 {[%clk 0:00:09.8]} 29. Rc1
{[%clk 0:02:03.3]} 1-0

[Event "*** Titled Tuesday Blitz"]
[Site "Chess.com"]
[Date "2020.11.10"]
[Round "1"]
[White "chenxiaoyuer"]
[Black "BillCoe"]
[Result "1-0"]
[WhiteElo "2506"]
[BlackElo "2066"]
[TimeControl "180+1"]
[EndTime "10:05:10 PST"]
[Termination "chenxiaoyuer won by resignation"]

1. e4 {[%clk 0:03:00.9]} 1... c5 {[%clk 0:02:51.3]} 2. Nf3 {[%clk 0:03:00.5]}
2... e6 {[%clk 0:02:48.8]} 3. d4 {[%clk 0:03:00.3]} 3... cxd4 {[%clk 0:02:49.7]}
4. Nxd4 {[%clk 0:03:01.2]} 4... a6 {[%clk 0:02:48.6]} 5. Nc3 {[%clk 0:03:01.3]}
5... Qc7 {[%clk 0:02:47.9]} 6. Be2 {[%clk 0:02:59.6]} 6... Bb4 {[%clk 0:02:45]}
7. O-O {[%clk 0:02:48]} 7... Nf6 {[%clk 0:02:43.2]} 8. Qd3 {[%clk 0:02:44.4]}
8... O-O {[%clk 0:02:40.6]} 9. Bg5 {[%clk 0:02:30.7]} 9... Be7 {[%clk
0:02:29.7]} 10. f4 {[%clk 0:02:25.8]} 10... d6 {[%clk 0:02:27.9]} 11. Rae1
{[%clk 0:02:16.9]} 11... Nbd7 {[%clk 0:02:27.6]} 12. Bf3 {[%clk 0:02:02.7]}
12... Rb8 {[%clk 0:02:18.6]} 13. Qe3 {[%clk 0:01:56.6]} 13... Re8 {[%clk
0:02:00.1]} 14. e5 {[%clk 0:01:46.2]} 14... dxe5 {[%clk 0:01:53.1]} 15. fxe5
{[%clk 0:01:44.7]} 15... Nd5 {[%clk 0:01:51.8]} 16. Bxd5 {[%clk 0:01:14.9]}
16... Bxg5 {[%clk 0:01:40.2]} 17. Qxg5 {[%clk 0:01:15.8]} 17... exd5 {[%clk
0:01:36.5]} 18. Nf5 {[%clk 0:01:09.7]} 18... Qc5+ {[%clk 0:01:00.5]} 19. Kh1
{[%clk 0:01:07.3]} 19... Qf8 {[%clk 0:00:53.3]} 20. Nh6+ {[%clk 0:01:02.1]}
20... Kh8 {[%clk 0:00:53.2]} 21. Nxf7+ {[%clk 0:01:02.2]} 1-0

[Event "*** Titled Tuesday Blitz"]
[Site "Chess.com"]
[Date "2020.11.10"]
[Round "1"]
[White "Chopper1905"]
[Black "GM_LOADING"]
[Result "1-0"]
[WhiteElo "2930"]
[BlackElo "2459"]
[TimeControl "180+1"]
[EndTime "10:05:13 PST"]
[Termination "Chopper1905 won by resignation"]

1. f4 {[%clk 0:02:59.7]} 1... d5 {[%clk 0:02:54.3]} 2. Nf3 {[%clk 0:02:59.8]}
2... Bg4 {[%clk 0:02:41.4]} 3. e3 {[%clk 0:02:57]} 3... Nd7 {[%clk 0:02:40.3]}
4. h3 {[%clk 0:02:55.9]} 4... Bxf3 {[%clk 0:02:35.9]} 5. Qxf3 {[%clk 0:02:56.8]}
5... e5 {[%clk 0:02:36]} 6. Qxd5 {[%clk 0:02:49.1]} 6... Qh4+ {[%clk 0:02:35.5]}
7. Kd1 {[%clk 0:02:48.6]} 7... O-O-O {[%clk 0:02:35.9]} 8. Qf3 {[%clk
0:02:41.4]} 8... Bc5 {[%clk 0:01:51.7]} 9. Nc3 {[%clk 0:02:31.9]} 9... Ngf6
{[%clk 0:01:14.1]} 10. g3 {[%clk 0:02:21.7]} 10... Qh6 {[%clk 0:01:12.3]} 11.
Bg2 {[%clk 0:02:19.1]} 11... c6 {[%clk 0:01:09.4]} 12. g4 {[%clk 0:02:14.6]}
12... Qh4 {[%clk 0:01:06.8]} 13. d3 {[%clk 0:02:09.3]} 13... e4 {[%clk
0:01:02.2]} 14. Nxe4 {[%clk 0:02:02.4]} 14... Nxe4 {[%clk 0:01:01.4]} 15. Qxe4
{[%clk 0:02:03.3]} 15... Rhe8 {[%clk 0:00:59.6]} 16. Qf3 {[%clk 0:02:03.2]}
16... Nf6 {[%clk 0:00:48.4]} 17. Bd2 {[%clk 0:01:48]} 17... Ne4 {[%clk 0:00:33]}
18. dxe4 {[%clk 0:01:29.1]} 18... Rd7 {[%clk 0:00:24.6]} 19. Ke2 {[%clk
0:01:25.2]} 19... Red8 {[%clk 0:00:18.5]} 20. Rhd1 {[%clk 0:01:25.1]} 1-0

[Event "*** Titled Tuesday Blitz"]
[Site "Chess.com"]
[Date "2020.11.10"]
[Round "1"]
[White "karwowskikacper"]
[Black "vugarrasulov"]
[Result "0-1"]
[WhiteElo "2435"]
[BlackElo "2867"]
[TimeControl "180+1"]
[EndTime "10:05:19 PST"]
[Termination "vugarrasulov won by checkmate"]

1. e4 {[%clk 0:02:55.9]} 1... e5 {[%clk 0:02:58.2]} 2. Nf3 {[%clk 0:02:55.7]}
2... Nc6 {[%clk 0:02:58.6]} 3. d4 {[%clk 0:02:56.2]} 3... exd4 {[%clk
0:02:58.5]} 4. Nxd4 {[%clk 0:02:57.1]} 4... Bc5 {[%clk 0:02:58.4]} 5. Nb3 {[%clk
0:02:57.1]} 5... Bb6 {[%clk 0:02:58.4]} 6. Nc3 {[%clk 0:02:56.5]} 6... d6 {[%clk
0:02:57.2]} 7. Qe2 {[%clk 0:02:54.7]} 7... a5 {[%clk 0:02:55.3]} 8. a4 {[%clk
0:02:53.1]} 8... Nf6 {[%clk 0:02:55]} 9. Bg5 {[%clk 0:02:52.3]} 9... Be6 {[%clk
0:02:52]} 10. Nd5 {[%clk 0:02:30.1]} 10... Nb4 {[%clk 0:02:16.7]} 11. Bxf6
{[%clk 0:02:22.3]} 11... gxf6 {[%clk 0:02:15.6]} 12. Nxb4 {[%clk 0:02:22.1]}
12... axb4 {[%clk 0:02:14.6]} 13. Qb5+ {[%clk 0:02:18.1]} 13... c6 {[%clk
0:02:12.2]} 14. Qxb4 {[%clk 0:02:17.4]} 14... O-O {[%clk 0:02:06.6]} 15. Be2
{[%clk 0:02:01.9]} 15... f5 {[%clk 0:01:55]} 16. O-O {[%clk 0:01:39.1]} 16... f4
{[%clk 0:01:53.6]} 17. Rad1 {[%clk 0:01:29]} 17... Bc7 {[%clk 0:01:33]} 18. e5
{[%clk 0:01:22.7]} 18... Qg5 {[%clk 0:01:13.1]} 19. exd6 {[%clk 0:01:17.7]}
19... Bh3 {[%clk 0:01:10.1]} 20. Bf3 {[%clk 0:01:14.9]} 20... Bxg2 {[%clk
0:01:10.4]} 21. h4 {[%clk 0:00:49.5]} 21... Qg6 {[%clk 0:01:02.4]} 22. Qxf4
{[%clk 0:00:40.8]} 22... Bxf3+ {[%clk 0:01:01.3]} 23. Kh2 {[%clk 0:00:40.9]}
23... Qg2# {[%clk 0:01:01]} 0-1